Cogmind - Beta 11.1 @@@ ROGUE MODE // 2022.09.23 @ 18:05:10 Player: deadnoob Result: Destroyed by D-53 Grenadier with Mini Grenade Launcher Performance ------------- Evolutions (0) 0 Regions Visited (4) 800 Robots Destroyed (18) 90 Value Destroyed (510) 510 Prototype IDs (5) 100 Alien Tech Used (0) 0 Bonus (-857) -857 TOTAL SCORE: 643 Bonus ------- Friendly Fire -857 Cogmind --------- Core Integrity 0/250 Matter 243/300 Energy 161/170 System Corruption 0% Temperature Cool (66) Movement Core (350) Ox6 Location -9/Mines Parts ------- > --- POWER (1) -------- Light Neutrino Core > --- PROPULSION (2) --- (None) > --- UTILITY (2) ------ Medium Storage Unit > --- WEAPON (2) ------- Small Laser Light Assault Rifle > --- INVENTORY (10) --- Light Ion Engine Large Storage Unit Huge Storage Unit Gravity Neutralizer Experimental Sensor Array Thief Drone Bay (0/3) Peak State ------------ > --- POWER ------------ Light Neutrino Core > --- PROPULSION ------- Aluminum Leg Wheel > --- UTILITY ---------- Medium Storage Unit AS-neutralizer No. 17b > --- WEAPON ----------- Medium Laser Light Assault Rifle > --- INVENTORY -------- Light Ion Engine Large Storage Unit Gravity Neutralizer Experimental Sensor Array Thief Drone Bay Small Laser [Rating: 19] Favorites ----------- Power Light Ion Engine Engine Light Ion Engine Power Core Light Neutrino Core Propulsion Wheel Treads Light Treads Leg Aluminum Leg Wheel Wheel Utility Medium Storage Unit Device Thief Drone Bay Storage Medium Storage Unit Weapon Small Laser Energy Gun Small Laser Ballistic Gun Assault Rifle Launcher Grenade Launcher Build | -11 -10 -10 -10 -9 ------- Run | Scr Mat Min Exi Min Slots Evolved . | . . . . . Power . | . . . . . Propulsion . | . . . . . Utility . | . . . . . Weapon . | . . . . . Parts Attached 24 | . 13 2 5 4 Power 3 | . 2 . . 1 Engine 2 | . 2 . . . Core 1 | . . . . 1 Reactor . | . . . . . Propulsion 6 | . 5 . 1 . Treads 2 | . 2 . . . Leg 2 | . 1 . 1 . Wheel 2 | . 2 . . . Hover . | . . . . . Flight . | . . . . . Utility 7 | . 2 2 1 2 Device 6 | . 1 2 1 2 Storage 1 | . 1 . . . Processor . | . . . . . Hackware . | . . . . . Protection . | . . . . . Artifact . | . . . . . Weapon 8 | . 4 . 3 1 Energy Gun 3 | . 1 . 1 1 Energy Cannon . | . . . . . Ballistic Gun 2 | . 1 . 1 . Ballistic Cannon . | . . . . . Launcher 3 | . 2 . 1 . Special Weapon . | . . . . . Impact Weapon . | . . . . . Slashing Weapon . | . . . . . Piercing Weapon . | . . . . . Special Melee Weapon . | . . . . . Unidentified Prototypes 5 | . . 2 . 3 Parts Lost 11 | . 4 . 3 4 Power 1 | . 1 . . . Propulsion 5 | . 2 . 1 2 Utility 2 | . 1 . . 1 Weapon 3 | . . . 2 1 Highest Loss Streak 4 | . 2 . 3 4 To Critical Strikes . | . . . . . Average Slot Usage (%) 86 | . 86 85 83 97 Engine 13 | . 13 14 14 8 Treads 7 | . 14 . . . Leg 5 | . 9 . . 12 Wheel 14 | . 3 28 26 12 Device 2 | . 2 . 3 14 Storage 14 | . 14 14 14 14 Energy Gun 11 | . 14 14 4 14 Ballistic Gun 7 | . 13 . . 14 Launcher 8 | . . 14 20 . Naked Turns . | . . . . . Heaviest Build 27 | 13 23 17 23 27 Greatest Support 40 | 20 40 20 20 10 Greatest Overweight (x) 2 | . 1 . 2 2 Average Overweight (x) . | . . . . 1 Largest Inventory Capacity 10 | . 10 10 10 10 Average Capacity 9 | . 9 10 10 10 Most Carried 10 | . 10 10 10 7 Average Carried 9 | . 9 9 9 6 Final Capacity 10 | 8 10 10 10 10 Final Carried 10 | 6 8 10 7 6 Class Distribution -------------------- 100% | Mutant Dominant Class ---------------- Mutant | -10/Materials Mutant | -10/Mines Mutant | -10/Exiles Mutant | -9/Mines Resources | -11 -10 -10 -10 -9 ----------- Run | Scr Mat Min Exi Min Matter Collected 630 | 199 196 29 206 . Remotely . | . . . . . Salvage Created 696 | . 655 . 24 17 Parts 34 | . 34 . . . Haulers Intercepted . | . . . . . Recyclers Shooed 3 | . 3 . . . Parts Field Recycled . | . . . . . Retrieved Matter . | . . . . . Parts Self-Destructed . | . . . . . Prevented . | . . . . . Kills | -11 -10 -10 -10 -9 ------- Run | Scr Mat Min Exi Min Combat Hostiles Destroyed 18 | . 16 . 2 . Guns 13 | . 13 . . . AOE 5 | . 3 . 2 . Classes Destroyed 4 | . 3 . 1 . Recycler 2 | . 2 . . . Swarmer 3 | . 3 . . . Grunt 13 | . 13 . . . Assembled 7 | . . . 7 . Best Kill Streak 5 | . 5 . 2 . Combat Bots Only 4 | . 4 . 2 . Max Kills in Single Turn 5 | . 4 . 5 . Gunslinging . | . . . . . Exploded 3 | . 3 . 2 . Melee . | . . . . . Uniques/NPCs Destroyed . | . . . . . Combat | -11 -10 -10 -10 -9 -------- Run | Scr Mat Min Exi Min Damage Taken 1784 | . 864 5 430 485 Core 265 | . 178 . . 87 Absorbed by Shields . | . . . . . Core Remaining (%) 100 | 100 . . . . Volleys Fired 80 | . 67 . 2 11 Largest 2 | . 2 . 2 2 Hottest 70 | . 60 . 60 70 Shots Fired 153 | . 131 . 4 18 Gun 146 | . 128 . . 18 Cannon . | . . . . . Launcher 7 | . 3 . 4 . Special . | . . . . . Kinetic 71 | . 64 . . 7 Thermal 75 | . 64 . . 11 Explosive 7 | . 3 . 4 . Electromagnetic . | . . . . . Robot Hit Streak 13 | . 13 . 1 4 Robot Miss Streak 7 | . 7 . 1 1 Penetration Max . | . . . . . Secondary Targets 2 | . 2 . . . Max Gunslinging Chain 1 | . 1 . . . Shots Hit Robots 100 | . 87 . 1 12 Core Hits 54 | . 34 . 14 6 Critical Kills . | . . . . . Critical Parts Destroyed . | . . . . . Critical Strikes . | . . . . . Melee Attacks . | . . . . . Impact . | . . . . . Slashing . | . . . . . Piercing . | . . . . . Sneak Attacks . | . . . . . Combat Hostiles . | . . . . . Follow-up Attacks . | . . . . . Damage Inflicted 1739 | . 1203 11 399 126 Guns 1216 | . 1090 . . 126 Cannons . | . . . . . Explosions 512 | . 113 . 399 . Melee . | . . . . . Ramming 11 | . . 11 . . Kinetic 571 | . 521 . . 50 Thermal 645 | . 569 . . 76 Explosive 512 | . 113 . 399 . Electromagnetic . | . . . . . Impact . | . . . . . Slashing . | . . . . . Piercing . | . . . . . Highest Corruption . | . . . . . Average Corruption . | . . . . . Corruption Purged . | . . . . . Corruption Blocked . | . . . . . Overload Shots . | . . . . . Overflow Damage . | . . . . . Projectiles . | . . . . . Explosions . | . . . . . Melee . | . . . . . Knockbacks . | . . . . . Impact . | . . . . . Kinetic . | . . . . . Secondary . | . . . . . Self-Inflicted Damage 5 | . . 5 . . Shots . | . . . . . Rammed 2 | . 1 1 . . Targets Rammed 2 | . 1 1 . . Kicked . | . . . . . Crushed . | . . . . . Highest Temperature 229 | . 229 . . 91 Average Temperature 73 | . 78 . . 43 Received Heat Transfer 562 | . 522 . . 40 Siege Activations . | . . . . . Robots Corrupted . | . . . . . Combat Hostiles . | . . . . . Parts Fried . | . . . . . Impact Corruptions . | . . . . . Robots Melted . | . . . . . Combat Hostiles . | . . . . . Parts Melted 1 | . 1 . . . Heat Transferred 1447 | . 1225 . . 222 Parts Sabotaged . | . . . . . Parts Stolen . | . . . . . Parts Stripped . | . . . . . Power Chain Reactions . | . . . . . Missiles Intercepted . | . . . . . Alert | -11 -10 -10 -10 -9 ------- Run | Scr Mat Min Exi Min Peak Influence 292 | . 292 113 . 15 Initial 113 | . . 113 . . Average 109 | . 118 113 . . Maximum Alert Level 1 | . 1 . . . Low Security (%) 89 | . 85 100 . 100 Level 1 10 | . 14 . . . Level 2 . | . . . . . Level 3 . | . . . . . Level 4 . | . . . . . Level 5 . | . . . . . High Security . | . . . . . Max Security . | . . . . . Squads Dispatched 5 | . 5 . . . Investigation 3 | . 3 . . . Extermination . | . . . . . Reinforcement 2 | . 2 . . . Assault . | . . . . . Garrison . | . . . . . Intercept . | . . . . . Searches Triggered . | . . . . . Construction Impeded . | . . . . . Haulers Reinforced . | . . . . . Active Scanning Responses . | . . . . . Cargo Convoy Interrupts . | . . . . . Stealth | -11 -10 -10 -10 -9 --------- Run | Scr Mat Min Exi Min Distress Signals 2 | . 2 . . . Communications Jammed . | . . . . . Distress Signals . | . . . . . Times Spotted 42 | . 25 . 3 14 Peak Tracking Total 19 | . 4 . 4 19 Tactical Retreats 4 | . 1 . 2 1 Traps | -11 -10 -10 -10 -9 ------- Run | Scr Mat Min Exi Min Traps Triggered 1 | . 1 . . . Indirectly . | . . . . . Trap Hack Attempts . | . . . . . Triggered . | . . . . . Disarmed . | . . . . . Reprogrammed . | . . . . . Reused . | . . . . . Traps Extracted . | . . . . . Installed . | . . . . . Triggered . | . . . . . Machines | -11 -10 -10 -10 -9 ---------- Run | Scr Mat Min Exi Min Machines Disabled 3 | . . . 3 . Max in Single Turn 2 | . . . 2 . Machines Sabotaged . | . . . . . Garrisons Compromised . | . . . . . Overloaded Fab Kills . | . . . . . Hacking | -11 -10 -10 -10 -9 --------- Run | Scr Mat Min Exi Min Machines Accessed 7 | . 5 1 1 . Terminals 3 | . 3 . . . Fabricators . | . . . . . Repair Stations . | . . . . . Recycling Units 2 | . 2 . . . Scanalyzers . | . . . . . Garrison Access . | . . . . . Total Hacks 12 | . 10 1 1 . Successful 10 | . 8 1 1 . Failed 2 | . 2 . . . Catastrophic . | . . . . . Database Lockouts . | . . . . . Manual 8 | . 8 . . . Terminals 8 | . 8 . . . Fabricators . | . . . . . Repair Stations . | . . . . . Recycling Units 2 | . 2 . . . Scanalyzers . | . . . . . Garrison Access . | . . . . . Terminal Hacks 6 | . 4 1 1 . Record 1 | . . . 1 . Part Schematic 1 | . 1 . . . Robot Analysis 2 | . 2 . . . Open Door 1 | . . 1 . . Locate Traps 1 | . 1 . . . Fabricator Hacks . | . . . . . Repair Station Hacks . | . . . . . Recycling Unit Hacks . | . . . . . Scanalyzer . | . . . . . Garrison Access Hacks . | . . . . . Unauthorized Hacks 4 | . 4 . . . Terminals 2 | . 2 . . . Track 1 | . 1 . . . Assimilate 1 | . 1 . . . Fabricators . | . . . . . Repair Stations . | . . . . . Recycling Units 2 | . 2 . . . Tunnel 2 | . 2 . . . Scanalyzers . | . . . . . Garrison Access . | . . . . . Data Cores Recovered . | . . . . . Used . | . . . . . Hacking Detections 3 | . 3 . . . Full Trace Events . | . . . . . Feedback Events . | . . . . . Feedback Blocked . | . . . . . Robot Schematics Acquired . | . . . . . Robots Built . | . . . . . Authchips . | . . . . . Time . | . . . . . Total Robot Build Rating . | . . . . . Part Schematics Acquired 1 | . 1 . . . Parts Built . | . . . . . Authchips . | . . . . . Time . | . . . . . Total Part Build Rating . | . . . . . Parts Repaired . | . . . . . Time . | . . . . . Parts Recycled . | . . . . . Recycled Matter . | . . . . . Retrieved Matter . | . . . . . Retrieved Components . | . . . . . Parts Scanalyzed . | . . . . . Part Schematics Acquired . | . . . . . Parts Damaged . | . . . . . Bothacking | -11 -10 -10 -10 -9 ------------ Run | Scr Mat Min Exi Min Used RIF Installer . | . . . . . Robots Hacked . | . . . . . Non-combat . | . . . . . Combat . | . . . . . Robot Hacks Applied . | . . . . . Relay Couplers Released . | . . . . . Fabnet Peak Effective % . | . . . . . Robots Rewired . | . . . . . Allies Hacked . | . . . . . Hacks Repelled . | . . . . . Allies | -11 -10 -10 -10 -9 -------- Run | Scr Mat Min Exi Min Total Allies 2 | . 1 1 . . Largest Group 1 | . 1 1 1 . Highest-Rated Group 31 | . 10 31 31 . Highest-Rated Ally 31 | . 10 31 31 . Total Orders 1 | . . . 1 . RETURN 1 | . . . 1 . Ally Attacks 14 | . . . 14 . Total Damage 85 | . . . 85 . Kills . | . . . . . Allies Corrupted . | . . . . . Allies Melted . | . . . . . Intel | -11 -10 -10 -10 -9 ------- Run | Scr Mat Min Exi Min Robot Analysis Total 2 | . 2 . . . Derelict Logs Recovered 1 | . . 1 . . Drone Launches 7 | . . . 7 . Drone Recoveries 4 | . . . 4 . Exploration | -11 -10 -10 -10 -9 ------------- Run | Scr Mat Min Exi Min Turns Passed 1740 | . 884 334 430 92 Spaces Moved 1380 | 1 473 385 473 48 Core . | . . . . . Treads 203 | . 203 . . . Legs 211 | 1 205 . . 5 Wheels 966 | . 65 385 473 43 Hover . | . . . . . Flight . | . . . . . Fastest Speed 80 | 120 80 80 80 95 Average Speed 100 | 120 131 80 83 113 Slowest Speed 260 | 120 190 80 110 260 Overloaded Moves . | . . . . . Propulsion Burnouts . | . . . . . Robots Hopped . | . . . . . Cave-ins Triggered . | . . . . . Exploration Rate (%) 48 | 2 78 97 53 12 Regions Visited 4 Branch Regions 3 Pre-discovered Areas 3 | . 2 . 1 . Known Exits Taken . | . . . . . Unknown Exits Taken 4 | 1 1 1 1 . Scrap Searched 1 | . . 1 . . Spaces Dug . | . . . . . Terrain Destroyed 37 | . 24 . 13 . Melee . | . . . . . Projectile . | . . . . . AOE 37 | . 24 . 13 . Terrain Rammed . | . . . . . Walls Destroyed . | . . . . . Machines Disabled . | . . . . . Actions | -11 -10 -10 -10 -9 --------- Run | Scr Mat Min Exi Min Total 1587 | . 599 411 507 70 Wait 76 | . 35 21 18 2 Move 1376 | . 472 384 472 48 Hop . | . . . . . Pick Up 12 | . 6 1 4 1 Fast Attach 4 | . 3 1 . . Attach 8 | . 2 1 4 1 Detach 3 | . 1 2 . . Swap 12 | . 8 . 1 3 Drop 11 | . 4 . 6 1 Fire 80 | . 67 . 2 11 Melee . | . . . . . Ram 1 | . . 1 . . Kick . | . . . . . Crush 1 | . 1 . . . Escape Stasis . | . . . . . Rewire 3 | . . . . 3 Trap . | . . . . . Miscellaneous . | . . . . . Route ------- -11/Scrapyard -10/Materials (discovered 4 exits: [*Mat x3] / *Min) -10/Mines (discovered 3 exits: [*Mat x2] / *Exi) -10/Exiles -9/Mines History --------- Turn | Location | Event 1 | -11/Scrapyard | Discovered new exit (range 0) 1 | -11/Scrapyard | Entered Materials 251 | -10/Materials | Discovered new exit (range 10) 317 | -10/Materials | Build established: Mutant 655 | -10/Materials | Discovered new exit (range 16) 695 | -10/Materials | Core integrity fell below 50% 779 | -10/Materials | Discovered new exit (range 3) 878 | -10/Materials | Discovered new exit (range 10) 885 | -10/Materials | Entered Mines 891 | -10/Mines | Met a Derelict bent on vengeance 935 | -10/Mines | Discovered new exit (range 9) 948 | -10/Mines | Found a damaged Exp. Sensor Array with a note attached 951 | -10/Mines | Found Prototype Device 952 | -10/Mines | Identified Exp. Sensor Array 987 | -10/Mines | Discovered new exit (range 13) 997 | -10/Mines | Found the Drone Emporium 1000 | -10/Mines | Found Prototype Device 1000 | -10/Mines | Identified Thief Drone Bay 1165 | -10/Mines | Received a Mining Laser from a helpful Derelict 1200 | -10/Mines | Deemed a non-threat by the Exiles lab entrance 1200 | -10/Mines | Discovered new exit (range 5) 1219 | -10/Mines | Entered Exiles 1219 | -10/Exiles | Accompanied by 1 ally 1238 | -10/Exiles | Met 8R-AWN 1253 | -10/Exiles | Met EX-HEX 1284 | -10/Exiles | Met EX-DEC 1288 | -10/Exiles | Learned location of Zion (-7) 1311 | -10/Exiles | Met EX-BIN 1540 | -10/Exiles | Attacked by the Exiles 1633 | -10/Exiles | Lost 3 parts (1n2w) 1639 | -10/Exiles | Discovered new exit (range 10) 1649 | -10/Exiles | Entered Mines 1670 | -9/Mines | Assembled infested the area 1675 | -9/Mines | Assisted by a Guerilla fighting off Assembled 1695 | -9/Mines | Found AS-neutralizer No. 17b 1736 | -9/Mines | Core integrity fell below 20% 1741 | -9/Mines | Destroyed by D-53 Grenadier with Mini Grenade Launcher Last Messages --------------- 01693_ Knocked back. 01694_ Identified Gravity Neutralizer. 01695_ Identified AS-neutralizer No. 17b. 01700_ as-69417 powers down. 01700_ Identified Lgt. Neutrino Core. 01704_ Attempting to rewire as-69417. 01704_ as-69417 cannot be rewired. 01705_ Attempting to rewire as-69417. 01705_ as-69417 cannot be rewired. 01706_ Attempting to rewire as-69417. 01706_ as-69417 cannot be rewired. 01713_ as-69417 destroyed. 01717_ Acquired Huge Storage Unit. 01731_ as-47724 destroyed. 01734_ Med. Laser destroyed. 01734_ Wheel destroyed. 01736_ Aluminum Leg destroyed. 01737_ The unstable cave ceiling collapses. 01740_ D-53 Grenadier destroyed. 01741_ AS-neutralizer No. 17b destroyed. Map ----- +----------------------------------------------------+ | ??????????????????????????????? %?????????????? | | ?????????????????????????????? ?????????????? | | ?????????????????????????????? ??????????????? | | ?????????????????????????????? ??????????????? | | ?????????????????????????????# ???????????????? | | ???????????????????????????## #???????????????? | | ????????????????????????#### "????????????????? | | ???????????????????????## ##???????????????? | | ???????????????????????# #???????????????? | | ???????????????????????# % #???????????????? | | ???????????????????????## % ##??????? #??????? | | ????????????????????????## #????? ????????? | | ?????????????????????????# ## #??????????? | | ?????????????????????????# % #??????????? | | ????????????????????###### #??????????? | | ???????????????????? # ## #######??????????? | | ??????????????????"""" # #??????????????? | | ??????????????????"""" # ???????????????? | | ??????????????????""""% # #???????????????? | | ???????????????? # #???????????????? | | ???????????????##????? #???????????????? | | ?????????????????????## d #???????????????? | | ????????????????????## #???????????????? | | ????????????????????# #???????????????? | | ????????????????????# #???????????????? | | ????????????????????# @ #????????????????? | | ????????????????????# #????????????????? | | ????????????????????# #????????????????? | | ????????????????????## ##????????????????? | | ?????????????????????# #?????????????????? | | ?????????????????????# #?????????????????? | | ?????????????????????# #?????????????????? | | ?????????????????????#########?????????????????? | | ???????????????????????????????????????????????? | | ???????????????????????????????????????????????? | | ???????????????????????????????????????????????? | | ???????????????????????????????????????????????? | | ???????????????????????????????????????????????? | | | | | | | | | | | | | | | | | | | | | | | | | +----------------------------------------------------+ Best States ------------- Heat Dissipation 35 Energy Generation 19 Energy Capacity 250 Matter Stores 300 Matter Capacity 300 Sight Range 16 Terrain Scan Density 10 Evasion (%) 55 Recoil Reduction 2 Item Schematics ----------------- Hcp. Battery | -10/Materials | Hacked Robot Schematics ------------------ None Fabricated ------------ Nothing Alien Tech Used ----------------- None Achievements -------------- None Challenges ------------ None Game ------ Seed HugeSmallThermoblaster Manual? 0 Play Time 00:20:42 Cumulative 92.8 hours Start 2022.09.23 @ 17:09:32 End 2022.09.23 @ 18:05:10 Sessions 3 Manual Loads 0 Difficulty Rogue Special Mode None Game No. 132 Rogue 132 Adventurer 0 Explorer 0 Win Type - Total 1 Types 1/0/0/0/0/0/0/0/0 Lore% 61 Gallery% 63 Achievement% 50 Wizard Run 0 Options --------- ASCII 0 Keyboard 0 Movement Numpad Keybinds 0 Fullscreen 2 Font 18/SmallcapsGlow Map View 76x50 Tactical HUD 1 Map Filters NONE Filters NONE Steam 1 RUN: a4452799-a94e-4843-8768-522212be0b97